bitfinex/quotes_BTCUSD_20240815
["timestamp","ask_amount","ask_price","bid_price","bid_amount"]
[1723704925432,0.002,58158.0,58157.0,1.10996458]
[1723704925886,0.004,58158.0,58157.0,1.10996458]
[1723704926025,0.00090421,58159.0,58158.0,0.601807]
[1723704926224,0.00090421,58159.0,58158.0,0.77336154]
[1723704926651,0.00090421,58159.0,58158.0,1.01408454]
[1723704927260,0.00090421,58159.0,58158.0,1.01708454]
[1723704928119,0.00090421,58159.0,58158.0,1.01408454]
[1723704928716,0.00090421,58159.0,58158.0,1.02108454]
[1723704928932,0.00090421,58159.0,58158.0,1.01408454]
[1723704929340,0.00090421,58159.0,58158.0,1.01908454]
[1723704929650,0.00090421,58159.0,58158.0,1.02108454]
[1723704930153,0.00090421,58159.0,58158.0,1.02808454]
[1723704933579,0.00090421,58159.0,58158.0,1.54910754]
[1723704933860,0.00090421,58159.0,58158.0,1.72753731]
[1723704934022,0.00090421,58159.0,58158.0,1.72753718]
[1723704934844,0.00090421,58159.0,58158.0,1.7275306]
[1723704935419,0.00090421,58159.0,58158.0,1.7205306]
[1723704935647,0.00090421,58159.0,58158.0,1.7155306]
[1723704935888,0.00090421,58159.0,58158.0,1.7245306]
[1723704936112,0.00090421,58159.0,58158.0,1.7335306]
[1723704937017,0.00090421,58159.0,58158.0,1.9742536]
[1723704937221,0.009053,58171.0,58170.0,0.207036]
[1723704937380,0.009053,58171.0,58170.0,1.20060954]
[1723704937534,0.009053,58171.0,58170.0,1.22360954]
[1723704938893,0.009053,58171.0,58170.0,1.54748254]
[1723704939054,0.009053,58171.0,58170.0,1.53848254]
[1723704939455,0.009053,58171.0,58170.0,1.54948254]
[1723704939884,0.009053,58171.0,58170.0,1.55048254]
[1723704940108,0.009053,58171.0,58170.0,1.56448254]
[1723704940308,0.009053,58171.0,58170.0,1.56248254]
[1723704940513,0.009053,58171.0,58170.0,1.55048254]
[1723704941494,0.009053,58171.0,58170.0,1.53648254]
[1723704941701,0.009053,58171.0,58170.0,1.55048254]
[1723704941902,0.009053,58171.0,58170.0,1.56448254]
[1723704942312,0.009053,58171.0,58170.0,1.55048254]
[1723704942737,0.009053,58171.0,58170.0,1.56448254]
[1723704943442,0.528956,58171.0,58170.0,0.03832673]
[1723704943646,0.528956,58171.0,58170.0,0.028]
[1723704943864,0.167953,58171.0,58170.0,0.028]
[1723704944486,0.288287,58171.0,58170.0,0.028]
[1723704944678,0.288287,58171.0,58170.0,0.014]
[1723704945309,0.167953,58171.0,58170.0,0.027]
[1723704945489,0.167953,58171.0,58164.0,0.240696]
[1723704945712,0.167953,58171.0,58170.0,0.012]
[1723704946189,0.167953,58171.0,58165.0,0.27155454]
[1723704946385,0.0723,58168.0,58165.0,0.27155454]
[1723704946565,0.1575,58167.0,58165.0,0.39190054]
[1723704946771,0.1575,58167.0,58166.0,0.120345]
[1723704946996,0.1575,58167.0,58166.0,0.29189954]
[1723704948181,0.1575,58167.0,58166.0,0.53258954]
[1723704949159,0.1575,58167.0,58166.0,0.53658954]
[1723704949572,0.1575,58167.0,58166.0,0.53958954]
[1723704951165,0.0723,58167.0,58166.0,0.53958954]
[1723704952288,0.0723,58167.0,58166.0,0.78027954]
[1723704952646,0.0723,58167.0,58166.0,0.53958954]
[1723704952855,0.0723,58167.0,58166.0,0.78027954]
[1723704954454,0.099453,58171.0,58166.0,0.78027954]
[1723704954455,0.009053,58171.0,58170.0,0.842355]
[1723704954651,0.009053,58171.0,58170.0,1.13690954]
[1723704954899,0.009053,58171.0,58170.0,1.22460954]
[1723704955603,0.009053,58171.0,58170.0,1.46528254]
[1723704956178,0.009053,58171.0,58170.0,1.47028254]
[1723704956747,0.009053,58171.0,58170.0,1.47128254]
[1723704957236,0.009053,58171.0,58170.0,1.46528254]
[1723704957440,0.009053,58171.0,58170.0,1.46728254]
[1723704957638,0.009053,58171.0,58170.0,1.48128254]
[1723704958138,0.009053,58171.0,58170.0,1.47928254]
[1723704958339,0.009053,58171.0,58170.0,1.56868254]
[1723704958545,0.009053,58171.0,58170.0,1.73305746]
[1723704959161,0.009053,58171.0,58170.0,1.95973046]
[1723704959301,0.009053,58171.0,58170.0,1.79535554]
[1723704959506,0.009053,58171.0,58170.0,1.98772727]
[1723704959787,0.009053,58171.0,58170.0,1.79535554]
[1723704960013,0.009053,58171.0,58170.0,1.987727]
[1723704960182,0.009053,58174.0,58173.0,0.102]
[1723704960388,0.009053,58174.0,58173.0,1.81288954]
[1723704960800,0.009053,58174.0,58173.0,1.75059522]
[1723704961757,0.009053,58174.0,58173.0,1.76459522]
[1723704962328,0.0002,58179.0,58178.0,1.08488]
[1723704962614,0.0002,58179.0,58178.0,1.78253454]
[1723704963226,0.00904201,58185.0,58184.0,0.120307]
[1723704963448,0.00904201,58185.0,58184.0,1.13539154]
[1723704963648,0.00904201,58185.0,58184.0,1.37600654]
[1723704963847,0.00904201,58185.0,58184.0,1.61662154]
[1723704964045,0.00904201,58185.0,58184.0,1.61462154]
[1723704964324,0.00904201,58185.0,58184.0,1.37732154]
[1723704964521,0.00904201,58185.0,58184.0,1.38832154]
[1723704965354,0.00904201,58185.0,58184.0,1.39833923]
[1723704965579,0.00904201,58185.0,58184.0,1.64863923]
[1723704965790,0.00904201,58185.0,58184.0,1.62463923]
[1723704965994,0.00904201,58185.0,58184.0,2.21385423]
[1723704966200,0.00731781,58187.0,58186.0,1.026924]
[1723704966406,0.00731781,58187.0,58186.0,1.53908554]
[1723704966757,0.00904201,58197.0,58196.0,0.841981]
[1723704966966,0.00904201,58197.0,58196.0,1.36820154]
[1723704967170,0.00904201,58197.0,58196.0,0.89596954]
[1723704967380,0.08014201,58197.0,58196.0,0.89596954]
[1723704967754,0.00904201,58197.0,58196.0,0.89596954]
[1723704968570,0.00904201,58197.0,58196.0,1.13653554]
[1723704968770,0.00904201,58197.0,58196.0,1.15053554]
[1723704969235,0.00904201,58197.0,58196.0,1.23693554]
[1723704969951,0.00904201,58197.0,58196.0,1.25093554]
[1723704970155,0.00904201,58197.0,58196.0,1.26112046]
[1723704971179,0.00904201,58197.0,58196.0,1.50168646]
[1723704971739,0.00904201,58197.0,58196.0,1.26112046]
[1723704972352,0.00904201,58197.0,58196.0,1.57348646]
[1723704972550,0.00904201,58197.0,58196.0,1.33292046]
[1723704973160,0.00904201,58197.0,58196.0,2.61213249]
[1723704973292,0.00904201,58201.0,58198.0,0.973125]
[1723704973504,0.00904201,58201.0,58198.0,2.18328988]
[1723704973709,0.00904201,58201.0,58198.0,2.54684788]
[1723704973911,0.00904201,58201.0,58198.0,2.30954788]
[1723704975566,0.00904201,58201.0,58200.0,0.841921]
[1723704975915,0.00904201,58201.0,58200.0,1.13647554]
[1723704976124,0.009031,58204.0,58203.0,0.601342]
[1723704976300,0.009031,58204.0,58203.0,0.89589654]
[1723704976471,0.009031,58204.0,58203.0,1.13643354]
[1723704977514,0.009031,58204.0,58203.0,2.79855121]
[1723704977717,0.009031,58204.0,58203.0,2.93993321]
[1723704978604,0.009031,58204.0,58203.0,2.95093321]
[1723704979013,0.009031,58204.0,58203.0,2.95393321]
[1723704979236,0.009031,58206.0,58205.0,1.18238]
[1723704979431,0.009031,58206.0,58205.0,1.47693454]
[1723704982052,0.009031,58206.0,58205.0,1.23640554]
[1723704982276,0.078331,58206.0,58205.0,1.15040554]
[1723704982703,0.078331,58206.0,58205.0,1.16440554]
[1723704982902,0.078331,58206.0,58205.0,1.13640554]
[1723704983163,0.078331,58206.0,58205.0,1.15040554]
[1723704983371,0.078331,58206.0,58205.0,1.16440554]
[1723704983770,0.078331,58206.0,58205.0,1.15040554]
[1723704983970,0.078331,58206.0,58205.0,0.92387654]
[1723704984858,0.009031,58206.0,58205.0,1.31980554]
[1723704986229,0.009031,58206.0,58205.0,1.16440554]
[1723704990671,0.009031,58206.0,58205.0,0.68334754]
[1723704990821,0.009031,58206.0,58205.0,0.66034754]
[1723704991016,0.009031,58206.0,58205.0,0.90087654]
[1723704993709,0.009031,58206.0,58205.0,1.14140554]
[1723704993920,0.009031,58206.0,58205.0,0.90087654]
[1723704994619,0.009031,58206.0,58205.0,1.14140554]
[1723704994834,0.009031,58206.0,58205.0,0.90087654]
[1723704995059,0.009031,58206.0,58205.0,1.14140554]
[1723704995263,0.009031,58206.0,58205.0,0.90087654]
[1723704995866,0.009031,58206.0,58205.0,1.14140554]
[1723704996065,0.009031,58206.0,58205.0,0.90087654]
[1723704996272,0.009031,58206.0,58205.0,1.07915573]
[1723704997427,0.009031,58206.0,58205.0,1.31968473]
[1723704997970,0.009031,58206.0,58205.0,1.16195573]
[1723704998174,0.009031,58206.0,58205.0,1.28495573]
[1723704998370,0.009031,58206.0,58205.0,1.52548473]
[1723704998669,0.009031,58206.0,58205.0,0.92387654]
[1723704998874,0.009031,58206.0,58205.0,0.90087654]
[1723705001121,0.009031,58206.0,58205.0,0.41981854]
[1723705001333,0.161831,58206.0,58205.0,0.19955454]
[1723705002707,0.161831,58206.0,58205.0,0.29955454]
[1723705004299,0.161831,58206.0,58205.0,0.41981854]
[1723705008486,0.161831,58206.0,58205.0,0.66034754]
[1723705010119,0.161831,58206.0,58205.0,1.14140554]
[1723705010334,0.074531,58206.0,58205.0,1.14140554]
[1723705010536,0.009031,58206.0,58205.0,1.14140554]
[1723705014564,0.009031,58206.0,58205.0,0.66034754]
[1723705014565,0.097031,58206.0,58205.0,0.66034754]
[1723705014780,0.163131,58206.0,58205.0,0.66034754]
[1723705018239,0.163131,58206.0,58205.0,0.41981854]
[1723705018435,0.163131,58206.0,58205.0,0.66034754]
[1723705019997,0.163131,58206.0,58205.0,0.29955454]
[1723705020417,0.163131,58206.0,58205.0,0.41981854]
[1723705021202,0.163131,58206.0,58205.0,0.66034754]
[1723705022251,0.523918,58206.0,58205.0,0.028]
[1723705022378,1.004968,58206.0,58205.0,0.028]
[1723705022791,1.38595365,58206.0,58205.0,0.028]
[1723705023005,1.38595365,58206.0,58204.0,0.0009031]
[1723705023006,0.841851,58205.0,58204.0,0.0009031]
[1723705023323,1.37713665,58205.0,58204.0,0.0009031]
[1723705023742,2.92048955,58205.0,58204.0,0.0009031]
[1723705023934,2.92048955,58205.0,58198.0,0.0009031]
[1723705023935,0.924735,58199.0,58198.0,0.0009031]
[1723705024141,1.74306771,58199.0,58198.0,0.0009031]
[1723705024703,1.71743408,58199.0,58198.0,0.0009031]
[1723705025158,1.71743408,58199.0,58198.0,0.0019031]
[1723705025411,1.61522065,58199.0,58198.0,0.0019031]
[1723705025869,1.7429189,58199.0,58198.0,0.0019031]
[1723705026092,1.61522065,58199.0,58198.0,0.0019031]
[1723705026527,1.74383348,58199.0,58198.0,0.0019031]
[1723705026711,1.71831892,58199.0,58198.0,0.0019031]
[1723705027112,1.71360202,58199.0,58198.0,0.0019031]
[1723705029507,1.31174996,58199.0,58198.0,0.0019031]
[1723705029733,1.235235,58199.0,58198.0,0.0019031]
[1723705030638,1.28621334,58199.0,58198.0,0.0019031]
[1723705031624,1.235235,58199.0,58198.0,0.0019031]
[1723705034159,2.025235,58199.0,58198.0,0.0019031]
[1723705035159,2.03541611,58199.0,58198.0,0.0019031]
[1723705036355,2.77456439,58199.0,58198.0,0.0019031]
[1723705036561,2.77456439,58199.0,58168.0,0.32358]
[1723705036562,0.191828,58174.0,58168.0,0.32358]
[1723705036765,0.191828,58174.0,58173.0,0.17237654]
[1723705036766,0.0715,58174.0,58173.0,0.17237654]
[1723705036970,0.189722,58177.0,58173.0,0.17237654]
[1723705037171,0.189722,58177.0,58174.0,0.17155454]
[1723705038176,0.190722,58177.0,58174.0,0.17155454]
[1723705038616,0.189722,58177.0,58174.0,0.17155454]
[1723705039440,0.0694,58177.0,58174.0,0.17155454]
[1723705039593,0.240629,58181.0,58175.0,0.083]
[1723705039792,0.120316,58180.0,58175.0,0.203326]
[1723705040072,0.003,58177.0,58175.0,0.083]
[1723705040535,0.002,58177.0,58175.0,0.083]
[1723705040764,0.002,58177.0,58175.0,0.001]
[1723705040765,0.208124,58177.0,58175.0,0.001]
[1723705041009,0.120321,58178.0,58175.0,0.001]
[1723705041267,0.002,58177.0,58175.0,0.0019031]
[1723705041453,0.002,58177.0,58175.0,0.0009031]
[1723705041685,0.003,58177.0,58175.0,0.0009031]
[1723705041917,0.123322,58177.0,58175.0,0.0009031]
[1723705043030,0.003,58177.0,58175.0,0.0009031]
[1723705044156,0.003,58177.0,58175.0,0.13136586]
[1723705044609,0.003,58177.0,58176.0,1.50597454]
[1723705044842,0.4764,58197.0,58193.0,0.240578]
[1723705044843,0.5477,58197.0,58193.0,0.240578]
[1723705045092,0.091521,58199.0,58194.0,0.17155454]
[1723705045093,0.000821,58199.0,58194.0,0.17155454]
[1723705045317,0.000821,58199.0,58196.0,0.240565]
[1723705045528,0.000821,58199.0,58197.0,0.29183454]
[1723705045767,0.000821,58199.0,58197.0,0.17155454]
[1723705045996,0.000821,58199.0,58197.0,0.29183354]
[1723705046239,0.000821,58199.0,58192.0,0.240578]
[1723705046464,0.000821,58199.0,58189.0,0.0846]
[1723705046465,0.241376,58199.0,58193.0,0.17155454]
[1723705046679,0.1543,58196.0,58193.0,0.29184354]
[1723705047879,0.004,58196.0,58194.0,0.1597]
[1723705048110,0.004,58196.0,58195.0,0.72190954]
[1723705048338,0.008,58196.0,58195.0,1.20304954]
[1723705048811,0.004,58196.0,58195.0,1.20304954]
[1723705049650,0.000821,58199.0,58198.0,0.601395]
[1723705049995,0.000821,58199.0,58198.0,0.87294954]
[1723705050868,0.000821,58199.0,58198.0,0.87694954]
[1723705051515,0.000821,58199.0,58198.0,0.88094954]
[1723705055177,0.0713,58203.0,58202.0,0.360811]
[1723705055439,0.0713,58203.0,58202.0,0.53236554]
[1723705055644,0.0713,58203.0,58202.0,0.63236554]
[1723705056069,0.078631,58206.0,58204.0,0.120266]
[1723705056282,0.078631,58206.0,58202.0,0.1]
[1723705056506,0.078631,58206.0,58201.0,0.999179]
[1723705056751,0.450411,58202.0,58201.0,0.999179]
[1723705056957,0.760552,58202.0,58201.0,0.999179]
[1723705057997,0.771552,58202.0,58201.0,1.000179]
[1723705059825,0.781552,58202.0,58201.0,1.001179]
[1723705060464,0.531011,58202.0,58201.0,1.000179]
[1723705060681,0.541011,58202.0,58201.0,1.001179]
[1723705062570,0.781552,58202.0,58201.0,1.001179]
[1723705062775,0.541011,58202.0,58201.0,1.001179]
[1723705062992,0.771552,58202.0,58201.0,1.000179]
[1723705063210,0.770552,58202.0,58201.0,1.000179]
[1723705063415,1.011093,58202.0,58201.0,1.000179]
[1723705063640,1.011093,58202.0,58201.0,1.001179]
[1723705063641,4.20773755,58202.0,58201.0,1.001179]
[1723705063844,4.66428118,58202.0,58201.0,1.001179]
[1723705064054,4.73159453,58202.0,58201.0,1.001179]
[1723705064475,4.73159453,58202.0,58201.0,1.000179]
[1723705064683,4.72159453,58202.0,58201.0,1.000179]
[1723705064900,4.58562734,58202.0,58201.0,0.999179]
[1723705065519,4.57587638,58202.0,58201.0,0.999179]
[1723705066146,4.62008173,58202.0,58201.0,1.000179]
[1723705066347,4.63490373,58202.0,58201.0,0.92303239]
[1723705066553,0.150287,58194.0,58193.0,0.0009031]
[1723705066770,2.35376931,58194.0,58193.0,0.0009031]
[1723705066975,3.07749342,58194.0,58193.0,0.0009031]
[1723705067175,3.09749342,58194.0,58193.0,0.0009031]
[1723705067427,3.26904796,58194.0,58193.0,0.0009031]
[1723705067595,3.25904796,58194.0,58193.0,0.0009031]
[1723705067816,3.26304796,58194.0,58193.0,0.0009031]
[1723705068593,3.28004267,58194.0,58193.0,0.0009031]
[1723705068997,3.30004267,58194.0,58193.0,0.0009031]
[1723705069204,3.41350705,58194.0,58193.0,0.0009031]
[1723705069595,4.60422144,58194.0,58193.0,0.0009031]
[1723705069829,4.21613457,58194.0,58193.0,0.0009031]
[1723705070037,4.08867019,58194.0,58193.0,0.0009031]
[1723705070256,3.85137019,58194.0,58193.0,0.0009031]
[1723705070452,3.02837019,58194.0,58193.0,0.0009031]
[1723705070677,3.81837019,58194.0,58193.0,0.0009031]
[1723705070903,3.98992473,58194.0,58193.0,0.0009031]
[1723705071736,3.61984285,58194.0,58193.0,0.0009031]
[1723705071948,3.61891256,58194.0,58193.0,0.0009031]
[1723705072186,3.98578194,58194.0,58193.0,0.0009031]
[1723705072372,4.1107466,58194.0,58193.0,0.0009031]
[1723705072540,4.00878194,58194.0,58193.0,0.0009031]
[1723705074498,3.64191256,58194.0,58193.0,0.0009031]
[1723705075062,4.00808607,58194.0,58193.0,0.0009031]
[1723705075291,3.64191256,58194.0,58193.0,0.0009031]
[1723705075518,4.00800112,58194.0,58193.0,0.0009031]
[1723705075775,4.34726578,58194.0,58193.0,0.0009031]
[1723705076027,4.35726578,58194.0,58193.0,0.0009031]
[1723705076293,4.37726578,58194.0,58193.0,0.0009031]
[1723705076530,0.601622,58176.0,58173.0,0.000822]
[1723705076763,0.686622,58176.0,58173.0,0.000822]
[1723705077754,0.360973,58176.0,58175.0,0.0882031]
[1723705078156,0.240625,58182.0,58176.0,0.120323]
[1723705078157,0.120315,58181.0,58176.0,0.120323]
[1723705078413,0.120315,58181.0,58175.0,0.1550031]
[1723705078414,0.007,58176.0,58175.0,0.1550031]
[1723705078891,0.367973,58176.0,58175.0,0.0009031]
[1723705079837,0.127324,58176.0,58175.0,0.0009031]
[1723705080313,0.373973,58176.0,58175.0,0.0009031]
[1723705084357,0.133324,58176.0,58175.0,0.0009031]
[1723705084784,0.373973,58176.0,58175.0,0.0009031]
[1723705085959,0.133324,58176.0,58175.0,0.0009031]
[1723705086161,0.373973,58176.0,58175.0,0.0009031]
[1723705086651,0.133324,58176.0,58175.0,0.0009031]
[1723705087303,0.373973,58176.0,58175.0,0.0009031]
[1723705087743,0.133324,58176.0,58175.0,0.0009031]
[1723705088183,0.373973,58176.0,58175.0,0.0009031]
[1723705088613,0.133324,58176.0,58175.0,0.0009031]
[1723705088827,0.013,58176.0,58175.0,0.2743291]
[1723705089069,0.013,58176.0,58175.0,0.5149821]
[1723705089765,0.013,58176.0,58175.0,1.16784264]
[1723705090682,0.013,58176.0,58175.0,1.17808704]
[1723705090879,0.006,58176.0,58175.0,1.17808704]
[1723705091088,0.006,58176.0,58175.0,1.17908704]
[1723705091484,0.006,58176.0,58175.0,1.17808704]
[1723705091624,0.007,58176.0,58175.0,1.17908704]
[1723705092076,0.001,58176.0,58175.0,1.17908704]
[1723705092286,0.008,58176.0,58175.0,1.17908704]
[1723705092932,0.001,58176.0,58175.0,1.17908704]
[1723705093402,0.002,58176.0,58175.0,1.18008704]
[1723705094849,0.002,58176.0,58175.0,1.0085325]
[1723705095052,0.002,58176.0,58175.0,0.1560031]
[1723705095264,0.002,58176.0,58175.0,0.5169821]
[1723705095892,0.001,58176.0,58175.0,0.2753291]
[1723705096074,0.001,58176.0,58175.0,0.5159821]
[1723705096692,0.002,58176.0,58175.0,0.5159821]
[1723705097235,0.001,58176.0,58175.0,0.5149821]
[1723705097843,0.002,58176.0,58175.0,0.5149821]
[1723705098682,0.120312,58182.0,58178.0,0.12032]
[1723705099980,0.130312,58182.0,58178.0,0.12032]
[1723705100776,0.140312,58182.0,58178.0,0.12032]
[1723705101070,0.02,58182.0,58181.0,0.208514]
[1723705101274,0.02,58182.0,58181.0,0.449142]
[1723705102064,0.120301,58188.0,58184.0,0.120307]
[1723705102400,0.05092814,58190.0,58185.0,0.190605]
[1723705102607,0.05092814,58191.0,58185.0,0.431216]
[1723705103501,0.4904,58186.0,58185.0,0.431216]
[1723705103717,0.014,58186.0,58185.0,0.84338154]
[1723705103930,0.014,58186.0,58185.0,0.93248154]
[1723705104137,0.028,58186.0,58185.0,0.93248154]
[1723705104345,0.028,58186.0,58185.0,1.17309254]
[1723705104553,0.014,58186.0,58185.0,1.17309254]
[1723705104761,0.014,58186.0,58185.0,0.93248154]
[1723705105001,0.006,58186.0,58185.0,0.93248154]
[1723705105147,0.12119421,58193.0,58185.0,0.93248154]
[1723705105148,0.12119421,58193.0,58189.0,0.120296]
[1723705105713,0.12119421,58193.0,58185.0,0.81417654]
[1723705105714,0.00090421,58193.0,58191.0,0.120293]
[1723705106380,0.0868,58192.0,58189.0,0.120295]
[1723705106914,0.00090421,58193.0,58190.0,0.120295]
[1723705107124,0.00090421,58193.0,58190.0,0.120294]
[1723705107929,0.005,58192.0,58189.0,0.0816]
[1723705108160,0.00790421,58193.0,58185.0,0.25315454]
[1723705108333,0.00790421,58193.0,58190.0,0.120294]
[1723705108599,0.120291,58192.0,58188.0,0.120298]
[1723705109140,0.120293,58191.0,58187.0,0.120301]
[1723705110477,0.120295,58190.0,58187.0,0.120301]
[1723705110679,0.006,58192.0,58186.0,0.240605]
[1723705110860,0.006,58192.0,58188.0,0.120299]
[1723705110861,0.131291,58192.0,58188.0,0.120299]
[1723705111107,0.131291,58192.0,58185.0,0.0816]
[1723705111108,0.120294,58191.0,58187.0,0.120301]
[1723705111486,0.124294,58191.0,58187.0,0.120301]
[1723705111960,0.004,58191.0,58189.0,0.120295]
[1723705112164,0.004,58191.0,58190.0,0.360886]
[1723705112381,0.004,58191.0,58190.0,0.430686]
[1723705112788,0.00090421,58193.0,58192.0,0.120291]
[1723705114705,0.00690421,58193.0,58191.0,0.120293]
[1723705114912,0.00690421,58193.0,58190.0,0.240591]
[1723705114913,0.01390421,58193.0,58190.0,0.241413]
[1723705115120,0.01390421,58193.0,58192.0,0.120291]
[1723705115486,0.00690421,58193.0,58192.0,0.120291]
[1723705115875,0.01390421,58193.0,58192.0,0.120291]
[1723705116286,0.00690421,58193.0,58192.0,0.120291]
[1723705117819,0.01390421,58193.0,58192.0,0.120291]
[1723705118014,0.01390421,58193.0,58192.0,0.360873]
[1723705118416,0.01390421,58193.0,58192.0,0.120291]
[1723705121182,0.01390421,58193.0,58190.0,0.121116]
[1723705121370,0.1685,58192.0,58190.0,0.121116]
[1723705122359,0.00690421,58193.0,58190.0,0.121116]
[1723705122360,0.01390421,58193.0,58190.0,0.000822]
[1723705122540,0.01390421,58193.0,58191.0,0.120292]
[1723705122942,0.00790421,58193.0,58191.0,0.120292]
[1723705123146,0.00790421,58193.0,58192.0,0.120291]
[1723705123910,0.00090421,58193.0,58192.0,0.120291]
[1723705124147,0.00690421,58193.0,58192.0,0.120291]
[1723705124623,0.00090421,58193.0,58192.0,0.120291]
[1723705124855,0.00690421,58193.0,58192.0,0.120291]
[1723705125082,0.01390421,58193.0,58190.0,0.000822]
[1723705125544,0.01390421,58193.0,58191.0,0.120292]
[1723705126482,0.00790421,58193.0,58192.0,0.120291]
[1723705126952,0.00690421,58193.0,58192.0,0.120291]
[1723705127131,0.00790421,58193.0,58192.0,0.120291]
[1723705127641,0.00690421,58193.0,58192.0,0.120291]
[1723705128078,0.01390421,58193.0,58192.0,0.120291]
[1723705128296,0.01990421,58193.0,58192.0,0.120291]
[1723705128923,0.01990421,58193.0,58192.0,0.190391]
[1723705130466,0.01990421,58193.0,58191.0,0.120292]
[1723705131121,0.01990421,58193.0,58192.0,0.120291]
[1723705131557,0.00090421,58193.0,58192.0,0.120291]
[1723705131781,0.01390421,58193.0,58192.0,0.120291]
[1723705132814,0.01390421,58193.0,58192.0,0.601455]
[1723705133057,0.00790421,58193.0,58192.0,0.601455]
[1723705133309,0.00690421,58193.0,58192.0,0.601455]
[1723705133529,0.01390421,58193.0,58192.0,0.601455]
[1723705135734,0.01390421,58193.0,58192.0,1.17789154]
[1723705138469,0.01390421,58193.0,58192.0,1.18792204]
[1723705139150,0.01390421,58193.0,58192.0,0.93730954]
[1723705139583,0.01390421,58193.0,58192.0,0.120291]
[1723705140643,0.01390421,58193.0,58190.0,0.000822]
[1723705140851,0.01390421,58193.0,58190.0,0.121116]
[1723705141257,0.01390421,58193.0,58191.0,0.120293]
[1723705142514,0.00690421,58193.0,58191.0,0.120293]
[1723705142709,0.00090421,58193.0,58191.0,0.120293]
[1723705142951,0.01390421,58193.0,58192.0,0.120291]
[1723705143105,0.00790421,58193.0,58192.0,0.120291]
[1723705143316,0.00090421,58193.0,58192.0,0.360873]
[1723705143512,0.00690421,58193.0,58192.0,0.360873]
[1723705143719,0.00690421,58193.0,58192.0,0.120291]
[1723705143720,0.01390421,58193.0,58192.0,0.120291]
[1723705143920,0.00790421,58193.0,58192.0,0.120291]
[1723705144117,0.00690421,58193.0,58192.0,0.120291]
[1723705144529,0.01390421,58193.0,58192.0,0.120291]
[1723705145306,0.01390421,58193.0,58192.0,0.195291]
[1723705145560,0.01390421,58193.0,58192.0,1.18349154]
[1723705145691,0.01390421,58193.0,58192.0,0.94290954]
[1723705145905,0.01390421,58193.0,58192.0,0.120291]
[1723705146124,0.01390421,58193.0,58192.0,0.360873]
[1723705146323,0.00690421,58193.0,58192.0,0.360873]
[1723705146583,0.00790421,58193.0,58192.0,0.360873]
[1723705147249,0.00090421,58193.0,58192.0,0.360873]
[1723705147422,0.01290421,58193.0,58192.0,0.360873]
[1723705147621,0.00690421,58193.0,58192.0,0.360873]
[1723705148509,0.00690421,58193.0,58192.0,0.601455]
[1723705149137,0.01190421,58193.0,58192.0,0.602455]
[1723705149342,0.01190421,58193.0,58192.0,0.77400954]
[1723705149638,0.00090421,58193.0,58192.0,0.77300954]
[1723705149821,0.00790421,58193.0,58192.0,0.77300954]
[1723705150315,0.00290421,58193.0,58192.0,0.77300954]
[1723705150739,0.00290421,58193.0,58192.0,0.77383154]
[1723705151152,0.00490421,58193.0,58192.0,0.77383154]
[1723705152034,0.00290421,58193.0,58192.0,0.78404503]
[1723705152463,0.00190421,58193.0,58192.0,0.78404503]
[1723705152665,0.00390421,58193.0,58192.0,0.78404503]
[1723705152844,0.00290421,58193.0,58192.0,0.78404503]
[1723705153053,0.00090421,58193.0,58192.0,0.78404503]
[1723705153261,0.00090421,58193.0,58192.0,0.78504503]
[1723705155754,0.00190421,58193.0,58192.0,0.78504503]
[1723705156175,0.00090421,58193.0,58192.0,0.78504503]
[1723705156807,0.00090421,58193.0,58192.0,1.18842703]
[1723705158664,0.00190421,58193.0,58192.0,1.19042703]
[1723705159093,0.00190421,58193.0,58192.0,1.18942703]
[1723705159719,0.00290421,58193.0,58192.0,1.19442703]
[1723705160783,0.00290421,58193.0,58192.0,0.95384503]
[1723705162752,0.00290421,58193.0,58192.0,0.79104503]
[1723705162955,0.00290421,58193.0,58192.0,0.609277]
[1723705163160,0.00290421,58193.0,58192.0,0.368695]
[1723705165579,0.00290421,58193.0,58192.0,0.94733154]
[1723705165783,0.00290421,58193.0,58192.0,1.18791354]
[1723705165995,0.00290421,58193.0,58192.0,0.94733154]
[1723705167274,0.00290421,58193.0,58192.0,1.18791354]
[1723705168531,0.00290421,58193.0,58191.0,0.0009042]
[1723705168532,1.12365875,58193.0,58191.0,0.0009042]
[1723705168730,2.01857987,58192.0,58191.0,0.0009042]
[1723705168946,2.01857987,58192.0,58191.0,1e-08]
[1723705168947,3.40624678,58192.0,58191.0,1e-08]
[1723705169146,3.74414059,58192.0,58191.0,1e-08]
[1723705169336,3.74414059,58192.0,58175.0,0.0009031]
[1723705169337,0.842271,58176.0,58175.0,0.0009031]
[1723705169594,1.3073565,58176.0,58175.0,0.0009031]
[1723705169802,1.3692565,58176.0,58175.0,0.0009031]
[1723705170712,0.989771,58176.0,58175.0,0.0009031]
[1723705170939,1.38500421,58176.0,58175.0,0.0009031]
[1723705171402,1.5266453,58176.0,58175.0,0.0009031]
[1723705171833,1.5126453,58176.0,58175.0,0.0009031]
[1723705172096,1.5266453,58176.0,58175.0,0.0009031]
[1723705172292,1.48705913,58176.0,58175.0,0.0009031]
[1723705172715,1.08031106,58176.0,58175.0,0.0009031]
[1723705172926,1.38499852,58176.0,58175.0,0.0009031]
[1723705173146,1.39899852,58176.0,58175.0,0.0009031]
[1723705173351,1.08027583,58176.0,58175.0,0.0009031]
[1723705173756,1.017771,58176.0,58175.0,0.0009031]
[1723705173953,1.003771,58176.0,58175.0,0.0009031]
[1723705174163,1.08027583,58176.0,58175.0,0.0009031]
[1723705174362,1.0547531,58176.0,58175.0,0.0009031]
[1723705175022,1.0407531,58176.0,58175.0,0.0009031]
[1723705175236,1.003771,58176.0,58175.0,0.0009031]
[1723705175660,1.017771,58176.0,58175.0,0.0009031]
[1723705176064,0.536473,58176.0,58175.0,0.0009031]
[1723705176474,1.017771,58176.0,58175.0,0.0009031]
[1723705177119,1.003771,58176.0,58175.0,0.0009031]
[1723705177716,1.017771,58176.0,58175.0,0.0009031]
[1723705178266,1.003771,58176.0,58175.0,0.0009031]
[1723705178488,1.017771,58176.0,58175.0,0.0009031]
[1723705178876,0.777122,58176.0,58175.0,0.0009031]
[1723705179239,1.003771,58176.0,58175.0,0.0009031]
[1723705179450,0.763122,58176.0,58175.0,0.0009031]
[1723705179623,1.017771,58176.0,58175.0,0.0009031]